fUSD/lending_fUSD_20241129
["ID","MTS","AMOUNT","RATE_DAILY","PERIOD"]
[343693557,1732875039751,-200.0,9.978e-05,2]
[343693558,1732875039760,-7980.1153642,9.979e-05,2]
[343693559,1732875039773,-9582.27122691,9.979e-05,2]
[343693560,1732875039784,-779.53836435,9.979e-05,2]
[343693561,1732875039796,-715.512,9.979e-05,2]
[343693562,1732875039910,-1026.707,9.979e-05,2]
[343693563,1732875040063,-8290.97145,9.979e-05,2]
[343693571,1732875042696,-11629.2985788,9.979e-05,2]
[343693572,1732875042709,-9822.17865945,9.979e-05,2]
[343693577,1732875042833,-6460.15811031,9.979e-05,2]
[343693578,1732875042844,-5061.67010808,9.979e-05,2]
[343693579,1732875042973,-2997.57176336,9.979e-05,2]
[343693580,1732875042984,-47453.23727778,9.979e-05,2]
[343693581,1732875042996,-6449.41997782,9.979e-05,2]
[343693582,1732875043007,-10656.79478112,9.979e-05,2]
[343693583,1732875043018,-3381.34637801,9.979e-05,2]
[343693584,1732875043048,-29014.20568413,9.979e-05,2]
[343693597,1732875045670,-2294.51476605,9.979e-05,2]
[343693598,1732875046022,-561.18233451,9.979e-05,2]
[343693599,1732875046034,-4904.47396,9.979e-05,2]
[343693600,1732875046063,-466.12646057,9.979e-05,2]
[343693601,1732875046074,-537.0661178,9.979e-05,2]
[343693602,1732875046092,-9687.44975444,9.979e-05,2]
[343693603,1732875064176,800.0,0.0003,120]
[343693604,1732875128323,800.0,0.0003,120]
[343693605,1732875208146,10000.0,0.0003,120]
[343693606,1732875217090,10000.0,0.0003,120]
[343693607,1732875225381,10000.0,0.0003,120]
[343693608,1732875233447,10000.0,0.0003,120]
[343693609,1732875248527,800.0,0.0003,120]
[343693610,1732875304441,800.0,0.0003,120]
[343693612,1732875369300,800.0,0.0003,120]
[343693613,1732875427698,800.0,0.0003,120]
[343693614,1732875484811,800.0,0.0003,120]
[343693617,1732875544034,800.0,0.0003,120]
[343693620,1732875610913,800.0,0.00026986,120]
[343693622,1732875663867,800.0,0.00029863,120]
[343693624,1732875726095,800.0,0.00029863,120]
[343693626,1732875782605,751.48981253,0.00029041,120]
[343693627,1732875783686,229.46,0.00029863,120]
[343693628,1732875908200,10000.0,0.0003,120]
[343693636,1732875968322,800.0,0.0003,120]
[343693637,1732876028889,800.0,0.0003,120]
[343693648,1732876074277,10000.0,0.0003,120]
[343693687,1732876232130,-820.57,8.219e-05,2]
[343693688,1732876232139,-201.28,8.922e-05,2]
[343693689,1732876232149,-250.0,8.927e-05,2]
[343693690,1732876232158,-390.35,8.946e-05,2]
[343693691,1732876232214,-109.65,8.946e-05,2]
[343693692,1732876232223,-19404.3,9.013e-05,2]
[343693693,1732876232232,-182.57,9.014e-05,2]
[343693694,1732876232242,-1000.0,9.034e-05,2]
[343693695,1732876232252,-253.61,9.152e-05,2]
[343693696,1732876232261,-158.84,9.589e-05,2]
[343693697,1732876232270,-205.31,9.589e-05,2]
[343693698,1732876232279,-2484.0,9.606e-05,2]
[343693699,1732876232288,-633.0,9.636e-05,2]
[343693700,1732876232297,-150.0,9.718e-05,2]
[343693701,1732876232307,-6204.69355584,9.719e-05,2]
[343693702,1732876232318,-948.09644416,9.719e-05,2]
[343693703,1732876232328,-8995.71,9.719e-05,2]
[343693704,1732876232337,-493.68,9.72e-05,2]
[343693705,1732876232347,-506.37,9.72e-05,2]
[343693706,1732876232356,-11109.06823154,9.72e-05,2]
[343693707,1732876235835,-614.72573488,9.72e-05,2]
[343693716,1732876237933,-37026.63953358,9.72e-05,2]
[343693717,1732876237942,-1000.0,9.72e-05,2]
[343693718,1732876237953,-7635.0528,9.72e-05,2]
[343693719,1732876237962,-496.09,9.72e-05,2]
[343693720,1732876237971,-490.26,9.72e-05,2]
[343693721,1732876237980,-173.993246,9.721e-05,2]
[343693722,1732876237988,-205.31,9.726e-05,2]
[343693723,1732876237998,-150.0,9.834e-05,2]
[343693724,1732876238007,-205.31,9.863e-05,2]
[343693725,1732876238016,-999.1652,9.899e-05,2]
[343693726,1732876238025,-5943.0701,9.9e-05,2]
[343693727,1732876238034,-2500.0,9.9e-05,2]
[343693728,1732876238043,-1228.22398603,9.9e-05,2]
[343693729,1732876238053,-377.45473704,9.96e-05,2]
[343693730,1732876238063,-162.3720924,9.973e-05,2]
[343693731,1732876238072,-279.71087361,9.973e-05,2]
[343693732,1732876238081,-500.0,9.973e-05,2]
[343693733,1732876238090,-500.0,9.973e-05,2]
[343693734,1732876238100,-302.48579563,9.973e-05,2]
[343693735,1732876238109,-173.87889891,9.973e-05,2]
[343693736,1732876238119,-500.0,9.973e-05,2]
[343693737,1732876238129,-242.958,9.976e-05,2]
[343693738,1732876238140,-973.093,9.976e-05,2]
[343693739,1732876238150,-1239.22528497,9.977e-05,2]
[343693740,1732876238160,-1544.58701876,9.978e-05,2]
[343693741,1732876238169,-1239.22528497,9.978e-05,2]
[343693742,1732876238179,-18524.37468479,9.979e-05,2]
[343693743,1732876238191,-1650.0,9.979e-05,2]
[343693744,1732876238204,-3577.5,9.979e-05,2]
[343693745,1732876238288,-3426.50488469,9.979e-05,2]
[343693755,1732876239921,-361.66611558,9.979e-05,2]
[343693756,1732876240090,-301.78060878,9.979e-05,2]
[343693795,1732876242936,-2803.02694497,9.979e-05,2]
[343693796,1732876242948,-6522.22619024,9.979e-05,2]
[343693797,1732876242961,-11790.20538782,9.979e-05,2]
[343693798,1732876243019,-283.67132013,9.979e-05,2]
[343693799,1732876243031,-11545.98000164,9.979e-05,2]
[343693800,1732876243294,-522.8,9.979e-05,2]
[343693801,1732876243326,-6989.89902143,9.979e-05,2]
[343693802,1732876243338,-15206.71184943,9.979e-05,2]
[343693832,1732876243710,-2293.52979038,9.979e-05,2]
[343693835,1732876243722,-2991.90562291,9.979e-05,2]
[343693837,1732876243733,-22678.41721728,9.979e-05,2]
[343693839,1732876243745,-8746.33819106,9.979e-05,2]
[343693845,1732876243803,-13000.0,9.979e-05,2]
[343693886,1732876245989,-1321.29523534,9.979e-05,2]
[343693887,1732876246021,-1382.79634238,9.979e-05,2]
[343693888,1732876246031,-2465.421874,9.979e-05,2]
[343693889,1732876246091,-8354.26345688,9.979e-05,2]
[343693890,1732876246103,-50556.57123456,9.979e-05,2]
[343693891,1732876246114,-200.0,9.98e-05,2]
[343693892,1732876246124,-373.41673548,9.98e-05,2]
[343693893,1732876246133,-200.0,9.981e-05,2]
[343693894,1732876246142,-21095.01202996,9.981e-05,2]
[343693895,1732876246177,-19394.9124,9.981e-05,2]
[343693926,1732876297172,5000.0,0.0003,120]
[343693928,1732876396494,1688.54289066,8e-05,2]
[343693929,1732876396522,3311.45710934,8e-05,2]
[343693932,1732876566991,165.34875349,0.00029041,120]
[343693933,1732876656049,-155.31,0.00016658,30]
[343693934,1732876869067,155.31,0.00016658,30]
[343693935,1732877128895,8394.41322722,0.0003,120]
[343694020,1732877410875,10000.0,0.00019,30]
[343694035,1732877432160,-779.54,8.219e-05,2]
[343694037,1732877432171,-224.16,9.01e-05,2]
[343694061,1732877432390,-511.08,9.01e-05,2]
[343694063,1732877432402,-5401.61,9.01e-05,2]
[343694065,1732877432411,-252.25,9.051e-05,2]
[343694066,1732877432421,-1000.0,9.07e-05,2]
[343694067,1732877432432,-250.0,9.098e-05,2]
[343694068,1732877432442,-250.0,9.138e-05,2]
[343694069,1732877432452,-300.0,9.226e-05,2]
[343694070,1732877432464,-2267.0,9.227e-05,2]
[343694071,1732877432473,-165.82,9.433e-05,2]
[343694072,1732877432483,-164.24,9.589e-05,2]
[343694073,1732877432493,-164.24,9.726e-05,2]
[343694074,1732877432503,-299.99,9.726e-05,2]
[343694075,1732877432513,-164.24,9.863e-05,2]
[343694076,1732877432527,-1000.0,9.899e-05,2]
[343694077,1732877432536,-701.4608,9.9e-05,2]
[343694078,1732877432549,-7499.7498,9.9e-05,2]
[343694079,1732877432559,-2500.0,9.9e-05,2]
[343694080,1732877432568,-1274.7534,9.9e-05,2]
[343694081,1732877432577,-550.0,9.9e-05,2]
[343694082,1732877432587,-514.28970247,9.971e-05,2]
[343694083,1732877432596,-621.82285872,9.972e-05,2]
[343694084,1732877432607,-500.0,9.973e-05,2]
[343694085,1732877432616,-500.0,9.973e-05,2]
[343694086,1732877432626,-7447.3758627,9.974e-05,2]
[343694087,1732877432635,-1945.54783875,9.974e-05,2]
[343694088,1732877432644,-1945.54783875,9.974e-05,2]
[343694089,1732877432654,-1945.54783875,9.975e-05,2]
[343694092,1732877432663,-621.82285872,9.976e-05,2]
[343694094,1732877432673,-514.28970247,9.976e-05,2]
[343694096,1732877432682,-7447.3758627,9.978e-05,2]
[343694098,1732877432694,-514.28970247,9.98e-05,2]
[343694100,1732877432703,-642.9429995,9.98e-05,2]
[343694102,1732877432713,-1379.923,9.98e-05,2]
[343694103,1732877432725,-184.029,9.98e-05,2]
[343694104,1732877432735,-514.28970247,9.981e-05,2]
[343694105,1732877432752,-87223.60239921,9.981e-05,2]
[343694106,1732877432761,-621.82285872,9.981e-05,2]
[343694107,1732877432771,-618.82256566,9.982e-05,2]
[343694108,1732877432783,-373.41673548,9.982e-05,2]
[343694109,1732877432794,-373.41673548,9.982e-05,2]
[343694110,1732877432804,-1239.22528497,9.982e-05,2]
[343694111,1732877432814,-621.82285872,9.983e-05,2]
[343694112,1732877432830,-127713.52682917,9.984e-05,2]
[343694113,1732877432851,-621.82285872,9.984e-05,2]
[343694114,1732877432867,-420.69499315,9.984e-05,2]
[343694115,1732877432879,-7447.3758627,9.986e-05,2]
[343694116,1732877432890,-373.41673548,9.986e-05,2]
[343694117,1732877432900,-377048.69609198,9.986e-05,2]
[343694118,1732877432910,-1281.71561905,9.987e-05,2]
[343694119,1732877432920,-1945.54783875,9.988e-05,2]
[343694120,1732877432930,-18396.72708314,9.988e-05,2]
[343694121,1732877432940,-514.28970247,9.989e-05,2]
[343694122,1732877432949,-200.0,9.989e-05,2]
[343694123,1732877432958,-18396.72708314,9.989e-05,2]
[343694124,1732877432968,-127713.52682917,9.99e-05,2]
[343694125,1732877432978,-18396.72708314,9.99e-05,2]
[343694126,1732877432987,-8451.17937158,9.99e-05,2]
[343694127,1732877432996,-618.82256566,9.99e-05,2]
[343694128,1732877433006,-10871.70165373,9.99e-05,2]
[343694129,1732877433016,-507.88,9.99e-05,2]
[343694130,1732877433026,-1945.54783875,9.991e-05,2]
[343694131,1732877433036,-18396.72708314,9.991e-05,2]
[343694132,1732877433048,-22437.06630351,9.991e-05,2]
[343694133,1732877433058,-10096.67983655,9.992e-05,2]
[343694134,1732877433068,-1945.54783875,9.992e-05,2]
[343694135,1732877433079,-1281.71561905,9.992e-05,2]
[343694136,1732877433089,-62628.57804953,9.993e-05,2]
[343694137,1732877433102,-6863.79999999,9.993e-05,2]
[343694142,1732877438184,-4802.60308294,9.993e-05,2]
[343694143,1732877438195,-21848.49995921,9.993e-05,2]
[343694144,1732877438211,-1083.42000045,9.993e-05,2]
[343694145,1732877438231,-1985.51048,9.993e-05,2]
[343694146,1732877438286,-739.73230278,9.993e-05,2]
[343694147,1732877438335,-760.3730815,9.993e-05,2]
[343694148,1732877438346,-1393.126496,9.993e-05,2]
[343694149,1732877438358,-3492.678663,9.993e-05,2]
[343694150,1732877438369,-3491.97499787,9.993e-05,2]
[343694151,1732877438400,-1937.8,9.993e-05,2]
[343694152,1732877438411,-12462.32394396,9.993e-05,2]
[343694153,1732877438424,-4223.10577194,9.993e-05,2]
[343694154,1732877438433,-94.13514253,9.993e-05,2]
[343694155,1732877438444,-326.55985062,9.993e-05,2]
[343694156,1732877438454,-7447.3758627,9.993e-05,2]
[343694157,1732877438463,-12903.92320832,9.993e-05,2]
[343694158,1732877438474,-804.14887674,9.993e-05,2]
[343694165,1732877440142,-2899.99920219,9.993e-05,2]
[343694166,1732877440154,-723.62190813,9.993e-05,2]
[343694167,1732877440330,-867.39560639,9.993e-05,2]
[343694168,1732877440342,-1009.74,9.993e-05,2]
[343694169,1732877440353,-7181.94509982,9.993e-05,2]
[343694170,1732877440365,-1627.05594,9.993e-05,2]
[343694171,1732877440376,-23927.98810584,9.993e-05,2]
[343694172,1732877440403,-5316.41826237,9.993e-05,2]
[343694179,1732877443285,-500.0,9.973e-05,2]
[343694180,1732877443294,-323.1545129,9.992e-05,2]
[343694181,1732877443307,-105.47415344,9.992e-05,2]
[343694182,1732877443318,-4976.47802822,9.993e-05,2]
[343694183,1732877443415,-314809.98185396,9.993e-05,2]
[343694184,1732877443425,-7447.3758627,9.993e-05,2]
[343694185,1732877443435,-7447.3758627,9.994e-05,2]
[343694186,1732877443444,-618.82256566,9.994e-05,2]
[343694187,1732877443460,-1239.22528497,9.994e-05,2]
[343694188,1732877443474,-1281.71561905,9.995e-05,2]
[343694189,1732877443484,-1239.22528497,9.995e-05,2]
[343694190,1732877443494,-420.69499315,9.996e-05,2]
[343694191,1732877443503,-127713.52682917,9.996e-05,2]
[343694193,1732877443515,-514.28970247,9.996e-05,2]
[343694195,1732877443537,-12077.94871359,9.997e-05,2]
[343694198,1732877443556,-1239.22528497,9.997e-05,2]
[343694199,1732877443565,-1281.71561905,9.997e-05,2]
[343694201,1732877443575,-373.41673548,9.997e-05,2]
[343694203,1732877443585,-621.82285872,9.997e-05,2]
[343694206,1732877443595,-1281.71561905,9.997e-05,2]
[343694208,1732877443604,-377048.69609198,9.998e-05,2]
[343694209,1732877443614,-18396.72708314,9.998e-05,2]
[343694212,1732877443623,-22437.06630351,9.998e-05,2]
[343694213,1732877443633,-127713.52682917,9.998e-05,2]
[343694216,1732877443643,-377048.69609198,9.998e-05,2]
[343694218,1732877443653,-12077.94871359,9.998e-05,2]
[343694219,1732877443663,-618.82256566,9.999e-05,2]
[343694221,1732877443672,-1281.71561905,9.999e-05,2]
[343694223,1732877443682,-2247.3763422,9.999e-05,2]
[343694225,1732877443691,-1957.21121926,9.999e-05,2]
[343694228,1732877443701,-579.18157713,9.999e-05,2]
[343694230,1732877443711,-8500.0,9.999e-05,2]
[343694233,1732877443720,-501.498,9.999e-05,2]
[343694236,1732877443729,-44153.33425521,9.999e-05,2]
[343694239,1732877443739,-2953.07824272,0.0001,2]
[343694242,1732877443748,-220.4334493,0.0001,2]
[343694245,1732877443757,-241637.02623764,0.0001,2]
[343694248,1732877443766,-22906.96912706,0.0001,2]
[343694250,1732877443776,-48697.59069763,0.0001,2]
[343694252,1732877443785,-4477943.41824291,0.0001,2]
[343694254,1732877443796,-895618.629235,0.0001,2]
[343694256,1732877443807,-8691.47688737,0.0001,2]
[343694258,1732877443822,-7333.00328502,0.0001,2]
[343694260,1732877443833,-1562.23412556,0.0001,2]
[343694262,1732877443845,-13647.34914779,0.0001,2]
[343694264,1732877443857,-52140.62610402,0.0001,2]
[343694267,1732877443874,-39428.139,0.0001,2]
[343694408,1732877446031,-93879.59635004,0.0001,2]
[343694409,1732877446474,-41765.60353486,0.0001,2]
[343694410,1732877446485,-1797.26641664,0.0001,2]
[343694411,1732877446495,-356.55198365,0.0001,2]
[343694412,1732877446507,-3409.58905462,0.0001,2]
[343694413,1732877446536,-9701.2638,0.0001,2]
[343694414,1732877446547,-38825.89680001,0.0001,2]
[343694415,1732877446563,-1676.04034,0.0001,2]
[343694419,1732877479238,155.31,0.00016658,30]
[343694420,1732877513096,40000.0,0.00019,30]
[343694421,1732877741231,1800.0,0.0003,120]
[343694423,1732878112971,1000.0,0.0003,120]
[343694424,1732878171581,1000.0,0.0003,120]
[343694432,1732878416582,1820.38923676,0.0003,120]
[343694439,1732878461833,155.31,0.00016658,30]
[343694452,1732878632599,-334.3349,8.119e-05,2]
[343694453,1732878632610,-300.0,8.177e-05,2]
[343694454,1732878632620,-164.5908072,8.178e-05,2]
[343694455,1732878632632,-833.685825,8.178e-05,2]
[343694456,1732878632643,-826.215,8.178e-05,2]
[343694457,1732878632726,-641.1177558,8.178e-05,2]
[343694458,1732878632737,-4698.44553642,8.178e-05,2]
[343694459,1732878632747,-4207.19718233,8.178e-05,2]
[343694460,1732878632757,-1040.05,8.219e-05,2]
[343694461,1732878632767,-352.08,8.492e-05,2]
[343694462,1732878632776,-250.0,8.508e-05,2]
[343694463,1732878632937,-23900.0,8.515e-05,2]
[343694464,1732878632952,-200.0,8.529e-05,2]
[343694465,1732878632962,-250.0,8.533e-05,2]
[343694466,1732878632973,-347.51,8.575e-05,2]
[343694467,1732878632983,-493.0,8.598e-05,2]
[343694468,1732878632993,-250.0,8.621e-05,2]
[343694469,1732878633003,-3597.22,8.757e-05,2]
[343694471,1732878633012,-404.74,8.805e-05,2]
[343694472,1732878633022,-3731.85,8.833e-05,2]
[343694473,1732878633033,-1122.82,8.913e-05,2]
[343694475,1732878633044,-1404.23,8.957e-05,2]
[343694476,1732878633054,-420.0,8.995e-05,2]
[343694478,1732878633064,-2000.0,9.003e-05,2]
[343694480,1732878633074,-158.7,9.036e-05,2]
[343694482,1732878633086,-1046.17,9.061e-05,2]
[343694485,1732878633098,-1000.0,9.214e-05,2]
[343694488,1732878633107,-170.29,9.221e-05,2]
[343694489,1732878633117,-166.24,9.226e-05,2]
[343694492,1732878633127,-13038.74,9.23e-05,2]
[343694493,1732878633136,-360.1,9.248e-05,2]
[343694495,1732878633146,-183.22,9.332e-05,2]
[343694497,1732878633156,-150.0,9.578e-05,2]
[343694499,1732878633166,-150.0,9.578e-05,2]
[343694501,1732878633177,-151.6,9.589e-05,2]
[343694503,1732878633190,-158.87,9.589e-05,2]
[343694505,1732878633200,-347.51,9.647e-05,2]
[343694507,1732878633210,-150.99,9.67e-05,2]
[343694509,1732878633221,-256.79,9.67e-05,2]
[343694511,1732878633231,-2126.73,9.67e-05,2]
[343694513,1732878633240,-7247.71,9.67e-05,2]
[343694515,1732878633249,-150.99,9.67e-05,2]
[343694517,1732878633259,-150.0,9.741e-05,2]
[343694519,1732878633272,-151.6,9.749e-05,2]
[343694521,1732878633281,-150.0,9.771e-05,2]
[343694523,1732878633291,-150.0,9.778e-05,2]
[343694525,1732878633300,-150.0,9.782e-05,2]
[343694527,1732878633310,-9662.8992,9.799e-05,2]
[343694529,1732878633320,-1802.7332,9.799e-05,2]
[343694531,1732878633329,-336.9244,9.799e-05,2]
[343694533,1732878633340,-6946.4407,9.799e-05,2]
[343694535,1732878633352,-2549.6734,9.799e-05,2]
[343694537,1732878633363,-4144.5874,9.799e-05,2]
[343694539,1732878633373,-12196.0,9.801e-05,2]
[343694541,1732878633384,-150.0,9.81e-05,2]
[343694543,1732878633394,-300.0,9.815e-05,2]
[343694545,1732878633404,-150.0,9.83e-05,2]
[343694547,1732878633414,-150.0,9.833e-05,2]
[343694549,1732878633425,-150.0,9.834e-05,2]
[343694551,1732878633435,-150.0,9.839e-05,2]
[343694553,1732878633445,-150.0,9.864e-05,2]
[343694555,1732878633455,-150.0,9.866e-05,2]
[343694557,1732878633466,-500.0,9.873e-05,2]
[343694560,1732878633476,-150.0,9.884e-05,2]
[343694561,1732878633486,-150.0,9.888e-05,2]
[343694564,1732878633496,-207.31369616,9.888e-05,2]
[343694566,1732878633506,-587.0,9.894e-05,2]
[343694568,1732878633517,-305980.5994,9.899e-05,2]
[343694570,1732878633527,-1000.0,9.9e-05,2]
[343694572,1732878633538,-5808.0633,9.9e-05,2]
[343694574,1732878633549,-2516.2208,9.9e-05,2]
[343694576,1732878633558,-8134.6545,9.9e-05,2]
[343694578,1732878633568,-762.374,9.9e-05,2]
[343694580,1732878633578,-6752.0417,9.9e-05,2]
[343694582,1732878633589,-1075.8699,9.9e-05,2]
[343694584,1732878633601,-3952.7882,9.9e-05,2]
[343694586,1732878633611,-1000.0,9.9e-05,2]
[343694588,1732878633621,-15661.9464,9.9e-05,2]
[343694590,1732878633631,-978.257,9.9e-05,2]
[343694592,1732878633642,-1060.100008,9.9e-05,2]
[343694593,1732878633652,-2127.9139,9.9e-05,2]
[343694595,1732878633662,-27443.1193,9.9e-05,2]
[343694597,1732878633672,-2500.0,9.9e-05,2]
[343694599,1732878633682,-846.76175389,9.9e-05,2]
[343694601,1732878633692,-500.0,9.9e-05,2]
[343694604,1732878633702,-150.0,9.907e-05,2]
[343694606,1732878633711,-151.6,9.909e-05,2]
[343694607,1732878633721,-150.0,9.952e-05,2]
[343694610,1732878633731,-150.0,9.959e-05,2]
[343694612,1732878633742,-150.0,9.971e-05,2]
[343694613,1732878633751,-331.98739869,9.973e-05,2]
[343694616,1732878633762,-618.48853181,9.975e-05,2]
[343694617,1732878633772,-331.98739869,9.979e-05,2]
[343694619,1732878633782,-150.0,9.98e-05,2]
[343694621,1732878633792,-1216.30523792,9.98e-05,2]
[343694623,1732878633802,-618.48853181,9.981e-05,2]
[343694624,1732878633812,-150.0,9.981e-05,2]
[343694625,1732878633823,-618.48853181,9.981e-05,2]
[343694626,1732878633833,-8500.0,9.981e-05,2]
[343694628,1732878633843,-618.48853181,9.983e-05,2]
[343694629,1732878633854,-1216.30523792,9.983e-05,2]
[343694631,1732878633864,-331.98739869,9.984e-05,2]
[343694633,1732878633874,-331.98739869,9.985e-05,2]
[343694635,1732878633884,-1216.30523792,9.987e-05,2]
[343694637,1732878633894,-1216.30523792,9.988e-05,2]
[343694639,1732878633904,-331.98739869,9.989e-05,2]
[343694641,1732878633914,-8500.0,9.99e-05,2]
[343694643,1732878633924,-618.48853181,9.992e-05,2]
[343694645,1732878633934,-1103.938,9.992e-05,2]
[343694647,1732878633944,-6657.2793827,9.992e-05,2]
[343694649,1732878633954,-618.48853181,9.993e-05,2]
[343694651,1732878633964,-6657.27938264,9.993e-05,2]
[343694653,1732878633974,-331.98739869,9.994e-05,2]
[343694655,1732878633986,-6657.27938264,9.994e-05,2]
[343694657,1732878633996,-6657.27938264,9.995e-05,2]
[343694659,1732878634006,-6657.27938264,9.996e-05,2]
[343694661,1732878634016,-6657.27938264,9.996e-05,2]
[343694663,1732878634028,-6657.27938264,9.997e-05,2]
[343694665,1732878634038,-6657.27938264,9.998e-05,2]
[343694667,1732878634048,-1216.30523792,9.999e-05,2]
[343694669,1732878634058,-1216.30523792,9.999e-05,2]
[343694671,1732878634070,-5994.56369096,9.999e-05,2]
[343694673,1732878634081,-8500.0,9.999e-05,2]
[343694675,1732878634093,-440.00307703,9.999e-05,2]
[343694677,1732878634109,-368.305,9.999e-05,2]
[343694679,1732878634119,-6657.27938264,9.999e-05,2]
[343694681,1732878634130,-43639.92439172,0.0001,2]
[343694683,1732878634141,-343434.92652768,0.0001,2]
[343694685,1732878634151,-8398.70333946,0.0001,2]
[343694687,1732878634162,-8398.70333942,0.0001,2]
[343694689,1732878634173,-8398.70333942,0.0001,2]
[343694691,1732878634185,-8398.70333942,0.0001,2]
[343694692,1732878634197,-8398.70333942,0.0001,2]
[343694695,1732878634211,-8398.70333942,0.0001,2]
[343694696,1732878634222,-8398.70333942,0.0001,2]
[343694698,1732878634233,-8398.70333942,0.0001,2]
[343694699,1732878634245,-8398.70333942,0.0001,2]
[343694700,1732878634256,-1395363.17020722,0.0001,2]
[343694701,1732878634272,-276.49464278,0.0001,2]
[343694702,1732878634286,-1627.16224393,0.0001,2]
[343694703,1732878635184,-7999506.60003829,0.0001,2]
[343694704,1732878635194,-4037566.0586351,0.0001,2]
[343694705,1732878635205,-832.190356,0.0001,2]
[343694706,1732878635216,-832.008,0.0001,2]
[343694707,1732878635228,-631.6400002,0.0001,2]
[343694708,1732878635239,-524.499995,0.0001,2]
[343694709,1732878635250,-391.98678766,0.0001,2]
[343694710,1732878635261,-510.54966987,0.0001,2]
[343694724,1732878638381,-500.0,9.873e-05,2]
[343694725,1732878638391,-3349.65078885,0.0001,2]
[343694726,1732878638404,-1008.81129647,0.0001,2]
[343694727,1732878638447,-2314.0,0.0001,2]
[343694728,1732878638534,-1512.54915,0.0001,2]
[343694729,1732878638694,-4046.86820665,0.0001,2]
[343694745,1732878640340,-47559.10871971,0.0001,2]
[343694750,1732878640441,-299.12,0.0001,2]
[343694751,1732878640668,-1013.268,0.0001,2]
[343694752,1732878640680,-5019.68047745,0.0001,2]
[343694753,1732878640693,-4793.3453825,0.0001,2]
[343694757,1732878644849,-293.33538468,9.999e-05,2]
[343694758,1732878644860,-5366.36849783,0.0001,2]
[343694759,1732878644967,-3857.46385349,0.0001,2]
[343694760,1732878644980,-4246.4850073,0.0001,2]
[343694761,1732878645081,-7168.99999989,0.0001,2]
[343694762,1732878645115,-4444.35088429,0.0001,2]
[343694771,1732878646241,-9977.45554258,0.0001,2]
[343694772,1732878646254,-3148.5,0.0001,2]
[343694773,1732878646266,-3488.4060499,0.0001,2]
[343694774,1732878646382,-316.89,0.0001,2]
[343694775,1732878646464,-1673.25007053,0.0001,2]
[343694776,1732878646475,-1787.36724828,0.0001,2]
[343694777,1732878646487,-11123.564,0.0001,2]
[343694778,1732878646497,-483.11999668,0.0001,2]
[343694780,1732878646663,-13448.5340575,0.0001,2]
[343694843,1732878721358,2476.0,0.0003,120]
[343694844,1732878811493,50000.0,0.00019,30]
[343694845,1732879001470,6273.397,0.0003,120]
[343694846,1732879028481,1051.10316001,0.0003,120]
[343694847,1732879223450,155.31,0.00016658,30]
[343694848,1732879228170,150.0,0.0003,120]
[343694849,1732879248472,71571.90240515,0.0003,120]
[343694850,1732879530418,4500.0,0.0003,120]
[343694852,1732879560495,3300.0,0.00027,90]
[343694853,1732879588570,4000.0,0.00024,60]
[343694854,1732879645576,6888.41990593,0.0003,120]
[343694857,1732879720553,176.26,7.935e-05,2]
[343694859,1732879731619,250.0,7.94e-05,2]
[343694877,1732879831660,-661.4670635,8.056e-05,2]
[343694878,1732879831672,-981.97,8.056e-05,2]
[343694879,1732879831683,-252.07410118,8.056e-05,2]
[343694880,1732879831709,-878.12,8.056e-05,2]
[343694881,1732879831720,-823.2975,8.056e-05,2]
[343694882,1732879831856,-907.52133532,8.056e-05,2]
[343694883,1732879831866,-1548.10366468,8.07e-05,2]
[343694891,1732879832048,-880.56913951,8.07e-05,2]
[343694892,1732879835389,155.31,0.00016658,30]
[343694912,1732879837547,-2912.76,8.07e-05,2]
[343694913,1732879837594,-17900.0,8.07e-05,2]
[343694914,1732879837642,-658.56719581,8.07e-05,2]
[343694915,1732879837651,-200.0,8.112e-05,2]
[343694916,1732879837661,-2627.03,8.176e-05,2]
[343694917,1732879837670,-774.40280419,8.178e-05,2]
[343694918,1732879837819,-345.81052081,8.178e-05,2]
[343694919,1732879837828,-1000.0,8.219e-05,2]
[343694920,1732879837837,-1500.0,8.219e-05,2]
[343694921,1732879837846,-158.0403472,8.219e-05,2]
[343694926,1732879839631,-91.9596528,8.219e-05,2]
[343694927,1732879839641,-1058.79,8.219e-05,2]
[343694928,1732879839650,-6299.26,8.224e-05,2]
[343694929,1732879839659,-364.0,8.241e-05,2]
[343694930,1732879839669,-163.09,8.267e-05,2]
[343694931,1732879839679,-249.03544048,8.308e-05,2]
[343694932,1732879839691,-763.55455952,8.308e-05,2]
[343694933,1732879839701,-500.0,8.33e-05,2]
[343694934,1732879839710,-1165.90206803,8.35e-05,2]